bitfinex-derivatives/quotes_ETHF0:USTF0_20250902
["timestamp","ask_amount","ask_price","bid_price","bid_amount"]
[1756828831602,1.84934653,4298.9,4298.5,0.247]
[1756828831794,0.6013,4298.8,4297.6,3.2078]
[1756828832104,1.84934653,4298.8,4297.7,0.247]
[1756828832297,0.6013,4298.4,4297.7,0.247]
[1756828832801,1.50634653,4298.5,4297.6,3.2078]
[1756828833001,1.24804653,4298.3,4297.7,0.247]
[1756828833302,0.6013,4298.2,4297.7,0.247]
[1756828833491,0.6013,4298.2,4297.6,3.2078]
[1756828833696,0.2583,4298.5,4297.7,0.247]
[1756828833697,0.2583,4298.0,4297.7,0.247]
[1756828834198,0.6013,4297.9,4297.7,0.247]
[1756828834398,0.6013,4297.9,4297.1,3.2078]
[1756828834704,0.6013,4297.7,4297.5,0.247]
[1756828835102,1.24804653,4297.8,4297.5,0.247]
[1756828835408,0.6013,4297.8,4297.7,3.2078]
[1756828835607,0.6013,4298.3,4297.7,3.2078]
[1756828835904,1.24804653,4298.3,4297.7,3.2078]
[1756828836102,1.24804653,4298.3,4297.9,0.6354]
[1756828836303,1.24804653,4298.9,4298.3,0.6354]
[1756828836599,1.24804653,4299.5,4299.0,0.41864]
[1756828836806,0.6013,4299.5,4299.1,0.247]
[1756828836999,0.6013,4299.5,4299.3,3.2078]
[1756828837195,0.6013,4299.5,4298.8,3.2078]
[1756828837595,0.6013,4299.4,4298.9,0.247]
[1756828837801,1.84934653,4299.4,4299.0,0.247]
[1756828838001,0.6013,4299.3,4299.0,0.247]
[1756828838207,1.24804653,4299.6,4299.1,0.6354]
[1756828838404,0.6013,4299.7,4299.4,0.6354]
[1756828838707,1.24804653,4299.9,4299.3,3.2078]
[1756828838708,0.6013,4299.9,4299.6,0.6354]
[1756828839100,0.6013,4300.1,4299.6,0.6354]
[1756828839302,3.2078,4300.2,4299.6,0.6354]
[1756828839805,0.6013,4300.1,4299.6,0.6354]
[1756828840007,0.64798197,4300.0,4299.6,0.6354]
[1756828840205,0.6013,4300.1,4299.6,0.6354]
[1756828840206,0.6013,4299.8,4299.6,0.6354]
[1756828840406,0.64798197,4299.7,4299.6,0.6354]
[1756828841008,0.6013,4300.3,4299.6,0.6354]
[1756828841208,0.64796886,4300.2,4299.6,1.05398]
[1756828841405,1.28526886,4300.1,4299.8,0.5929]
[1756828841708,3.2078,4300.7,4300.4,0.41851]
[1756828842009,3.2078,4301.4,4300.5,0.5929]
[1756828842210,3.2078,4300.6,4299.5,3.8007]
[1756828842413,0.2514,4300.5,4299.5,3.8007]
[1756828842604,3.2078,4300.6,4299.6,0.247]
[1756828842802,3.2078,4300.6,4299.7,0.41857]
[1756828842999,4.45584653,4301.2,4300.1,0.5929]
[1756828843204,3.2078,4300.7,4299.4,0.5929]
[1756828843500,3.2078,4300.2,4299.3,3.2078]
[1756828843810,0.6373,4299.9,4299.4,0.247]
[1756828844400,0.6373,4299.9,4299.3,3.2078]
[1756828844602,0.6373,4300.1,4299.4,0.247]
[1756828844802,0.6373,4300.1,4299.3,3.2078]
[1756828845008,0.6373,4299.9,4299.4,0.247]
[1756828845803,3.2078,4299.5,4298.9,0.8399]
[1756828846107,3.2078,4299.5,4298.9,4.0477]
[1756828846108,3.8451,4299.5,4298.9,4.0477]
[1756828846305,3.8451,4299.5,4298.9,0.8399]
[1756828846503,3.8451,4299.5,4298.9,4.0477]
[1756828847105,3.2078,4300.2,4299.0,0.65674]
[1756828847309,3.2078,4300.2,4299.1,0.5929]
[1756828847506,5.3743433,4304.1,4299.8,3.2078]
[1756828847507,3.2078,4300.7,4299.8,3.2078]
[1756828847700,3.2078,4301.3,4300.3,3.2078]
[1756828847905,3.2078,4301.3,4300.5,0.5929]
[1756828848109,3.2078,4301.3,4300.4,0.247]
[1756828848709,0.2514,4302.0,4300.6,0.5929]
[1756828848710,3.2078,4302.0,4300.6,0.5929]
[1756828849111,0.6373,4301.9,4300.6,0.5929]
[1756828849502,0.6373,4301.9,4300.5,0.2381]
[1756828849503,0.6373,4301.7,4300.8,0.5929]
[1756828849807,3.2078,4302.0,4301.1,0.5929]
[1756828850006,3.2078,4302.0,4301.2,0.247]
[1756828850311,3.2078,4302.0,4301.3,0.5929]
[1756828850512,0.6373,4301.9,4301.0,3.2078]
[1756828850715,0.6373,4301.9,4301.2,0.5929]
[1756828851215,0.6373,4301.9,4301.3,0.246]
[1756828851809,3.2078,4302.0,4301.3,0.246]
[1756828851810,3.2078,4302.0,4301.4,0.5929]
[1756828852413,3.2078,4302.0,4301.6,0.41839]
[1756828852613,3.2078,4302.0,4301.7,0.5929]
[1756828852815,3.2078,4302.0,4301.8,0.246]
[1756828853015,3.2078,4302.0,4301.9,0.5929]
[1756828853217,0.00360576,4302.2,4301.9,0.5929]
[1756828853415,3.2078,4302.6,4302.0,0.2381]
[1756828853615,3.2078,4302.6,4301.8,0.246]
[1756828853616,3.8451,4302.6,4302.2,0.5929]
[1756828853917,3.2078,4302.6,4302.2,0.5929]
[1756828854120,0.6373,4302.5,4302.2,0.5929]
[1756828854609,0.6373,4302.5,4302.3,0.5929]
[1756828854805,0.6373,4302.5,4301.6,0.5929]
[1756828855013,0.6373,4302.5,4301.7,0.246]
[1756828855513,0.6373,4302.5,4301.7,0.41838]
[1756828855712,0.6373,4302.5,4301.8,0.246]
[1756828855911,0.6373,4302.5,4301.6,0.5929]
[1756828855912,0.6373,4302.5,4301.9,0.246]
[1756828856413,0.6373,4302.5,4301.9,0.8389]
[1756828856918,0.6373,4302.5,4302.0,0.246]
[1756828857111,3.8451,4302.6,4302.0,0.246]
[1756828857512,3.8451,4302.6,4301.9,0.5929]
[1756828857807,3.8451,4302.6,4302.0,0.246]
[1756828858419,3.8451,4302.6,4302.0,0.8389]
[1756828859029,3.2078,4302.6,4302.0,0.246]
[1756828859328,3.2078,4302.6,4302.0,0.66435]
[1756828859521,3.2078,4302.6,4302.1,0.5929]
[1756828859718,3.2078,4302.6,4302.0,0.66435]
[1756828859927,3.2078,4302.6,4302.1,0.5929]
[1756828860225,0.6373,4302.5,4301.6,0.5929]
[1756828860927,0.6373,4302.5,4301.5,3.2078]
[1756828861121,0.6373,4302.5,4301.7,0.246]
[1756828861322,0.6373,4302.3,4301.7,0.246]
[1756828861624,3.2078,4301.9,4301.4,0.246]
[1756828861817,0.6373,4301.8,4301.4,0.246]
[1756828862322,0.6373,4301.8,4300.9,0.246]
[1756828862521,0.6373,4301.0,4300.8,0.246]
[1756828862725,3.2078,4301.1,4300.7,0.246]
[1756828863127,0.6373,4301.0,4300.1,0.5929]
[1756828863429,0.6373,4301.0,4300.0,3.2078]
[1756828863625,0.23253,4300.9,4300.0,3.2078]
[1756828863821,0.6373,4300.1,4299.6,30.937]
[1756828864022,3.2078,4299.7,4298.0,0.2381]
[1756828864222,3.2078,4298.9,4298.1,0.8389]
[1756828864621,3.2078,4298.9,4298.2,0.5929]
[1756828864817,3.2078,4298.9,4298.3,0.246]
[1756828865023,3.2078,4298.9,4298.4,0.5929]
[1756828865222,0.6373,4299.5,4298.6,0.5929]
[1756828865624,3.2078,4299.9,4298.7,0.5929]
[1756828865822,3.2078,4299.9,4298.9,3.2078]
[1756828866017,0.6373,4300.0,4299.5,3.2078]
[1756828866228,0.6373,4300.4,4299.6,0.5929]
[1756828866426,0.6373,4300.4,4299.7,0.246]
[1756828866925,0.6373,4300.4,4299.8,0.5929]
[1756828867128,0.6373,4301.3,4300.3,3.2078]
[1756828867326,0.6373,4302.1,4301.1,3.2078]
[1756828867531,0.6373,4302.1,4301.3,0.5929]
[1756828868228,0.6373,4302.9,4301.7,3.2078]
[1756828868429,0.64294223,4302.8,4301.7,3.2078]
[1756828868728,0.6373,4302.7,4301.7,3.2078]
[1756828869229,0.6373,4302.7,4301.8,0.5929]
[1756828870325,3.2078,4302.6,4301.7,3.4538]
[1756828870521,0.6373,4302.5,4301.7,3.4538]
[1756828870725,3.2078,4302.6,4301.7,3.2078]
[1756828870923,0.6373,4302.5,4301.7,0.246]
[1756828871227,0.6373,4302.5,4301.6,0.246]
[1756828871430,0.6373,4302.5,4301.7,0.246]
[1756828872032,3.2078,4302.6,4301.6,0.246]
[1756828872331,3.2078,4302.0,4301.4,0.246]
[1756828872529,0.5956,4301.9,4301.4,0.246]
[1756828872720,0.5956,4302.0,4301.2,3.8088]
[1756828872925,3.2078,4302.5,4301.4,0.601]
[1756828872926,0.5956,4302.4,4301.4,0.601]
[1756828873232,0.5956,4302.4,4301.4,0.41841]
[1756828873433,0.5956,4302.9,4302.1,3.8088]
[1756828874127,3.2078,4303.1,4302.6,3.2078]
[1756828874325,3.2078,4303.1,4302.8,0.601]
[1756828874727,3.2078,4303.7,4302.8,0.601]
[1756828874923,3.2078,4303.7,4302.9,0.601]
[1756828875126,0.5956,4304.4,4302.7,0.246]
[1756828875127,3.2078,4304.2,4303.2,0.601]
[1756828875630,0.5956,4304.1,4303.3,0.246]
[1756828875829,0.5956,4304.1,4303.2,0.601]
[1756828876030,0.5956,4304.1,4303.3,0.246]
[1756828876330,0.82796,4304.1,4303.2,0.601]
[1756828876635,0.246,4304.7,4300.5,3.1373772]
[1756828876636,0.5956,4303.6,4302.7,0.847]
[1756828877035,3.2078,4303.7,4302.7,0.847]
[1756828877230,0.5956,4303.5,4302.7,0.847]
[1756828877532,0.5956,4303.8,4302.7,0.246]
[1756828877724,0.64099104,4303.7,4302.7,0.246]
[1756828877922,1.23659104,4303.6,4302.5,0.601]
[1756828878122,0.5956,4303.3,4302.7,0.246]
[1756828878324,3.2078,4303.4,4302.5,0.847]
[1756828878527,0.2324,4303.3,4302.3,3.2078]
[1756828878829,0.64106828,4303.2,4302.3,3.2078]
[1756828879030,3.2078,4302.7,4301.5,0.601]
[1756828879336,3.2078,4302.7,4300.9,3.2078]
[1756828879337,3.2078,4302.0,4301.4,1.0712]
[1756828879525,0.64106828,4301.9,4301.4,1.0712]
[1756828879930,3.2078,4301.5,4301.4,1.0712]
[1756828880130,3.84886828,4301.5,4301.4,1.0712]
[1756828880337,3.2078,4301.5,4301.4,1.6722]
[1756828880937,3.2078,4301.5,4301.4,1.0712]
[1756828881228,7.2078,4301.5,4301.4,1.0712]
[1756828881530,7.2078,4301.5,4300.9,3.2078]
[1756828881531,7.4538,4301.5,4300.9,3.2078]
[1756828881739,3.2078,4301.5,4301.0,0.2435]
[1756828882126,3.2078,4301.5,4301.1,0.601]
[1756828883035,3.2078,4301.5,4301.1,0.247]
[1756828883239,3.2078,4301.5,4301.2,0.601]
[1756828883435,3.2078,4302.1,4301.2,0.601]
[1756828883828,3.2078,4302.8,4302.1,0.601]
[1756828884138,3.2078,4302.8,4302.5,0.2435]
[1756828884340,3.2078,4303.4,4302.6,0.601]
[1756828884531,0.64094952,4303.3,4303.0,0.2435]
[1756828884730,3.2078,4303.9,4303.1,0.601]
[1756828884931,0.64090325,4303.8,4303.1,0.601]
[1756828885135,3.2078,4303.9,4303.1,0.601]
[1756828885437,3.2078,4304.4,4303.6,0.601]
[1756828886333,3.2078,4303.9,4303.5,0.601]
[1756828886727,0.247,4304.2,4303.5,0.601]
[1756828886932,3.2078,4303.9,4302.7,3.2078]
[1756828887134,3.2078,4302.9,4301.9,3.8088]
[1756828887738,0.6406913,4302.8,4301.9,3.8088]
[1756828888034,3.2078,4302.9,4301.9,3.8088]
[1756828888234,0.64078715,4302.8,4302.1,0.601]
[1756828888435,3.2078,4302.9,4302.1,0.601]
[1756828888935,3.2078,4303.4,4302.4,3.2078]
[1756828889136,0.64066943,4303.3,4302.6,0.601]
[1756828889337,3.2078,4303.9,4302.6,0.601]
[1756828889538,0.88761258,4303.8,4302.6,1.01929]
[1756828889841,0.247,4303.8,4303.0,0.8445]
[1756828890036,3.2078,4303.4,4303.0,0.2435]
[1756828890635,3.2078,4303.4,4303.1,0.601]
[1756828890941,3.2078,4303.4,4302.6,0.848]
[1756828891138,3.2078,4303.4,4302.6,0.601]
[1756828891345,30.688,4304.3,4302.0,0.8445]
[1756828891346,3.2078,4302.9,4302.0,0.8445]
[1756828891641,3.2078,4302.9,4302.0,1.0915]
[1756828892145,3.2078,4302.9,4302.0,0.8445]
[1756828892537,3.2078,4302.9,4302.1,0.601]
[1756828892746,3.2078,4302.9,4302.1,3.8088]
[1756828892945,3.2078,4302.9,4302.1,0.601]
[1756828893536,3.2078,4302.9,4302.1,3.2078]
[1756828893739,3.2078,4302.9,4302.2,0.601]
[1756828894138,3.2078,4302.9,4302.1,3.4548]
[1756828894139,3.2078,4302.9,4302.5,0.2435]
[1756828894341,3.2078,4303.8,4302.6,0.247]
[1756828894541,3.2078,4303.8,4302.8,0.601]
[1756828894845,3.2078,4303.8,4302.9,1.01926]
[1756828895046,3.2078,4303.8,4303.1,0.601]
[1756828895242,3.2078,4303.8,4303.0,0.2435]
[1756828895243,3.2078,4303.8,4303.3,0.601]
[1756828895540,3.2078,4303.8,4303.2,0.247]
[1756828895742,3.2078,4303.8,4303.0,0.2435]
[1756828895743,3.2078,4303.3,4302.6,0.601]
[1756828896151,0.247,4303.6,4302.7,0.41828]
[1756828896342,0.247,4303.6,4302.6,0.601]
[1756828896738,0.247,4303.6,4302.6,1.01929]
[1756828896941,3.2078,4303.8,4302.8,0.41827]
[1756828897239,3.2078,4303.8,4303.2,0.601]
[1756828897444,3.2078,4303.8,4303.3,0.601]
[1756828897749,3.2078,4303.8,4303.2,0.848]
[1756828897948,3.2078,4303.8,4303.2,0.601]
[1756828898251,3.2078,4303.8,4303.2,0.848]
[1756828898449,3.2078,4303.8,4303.2,0.601]
[1756828898748,3.2078,4303.8,4303.2,0.247]
[1756828898944,0.247,4304.2,4303.3,0.601]
[1756828899145,0.64236983,4304.1,4303.3,0.601]
[1756828899351,0.247,4304.2,4303.3,0.601]
[1756828899646,0.64231022,4304.1,4303.3,0.601]
[1756828899945,3.2078,4304.3,4303.3,0.601]
[1756828900147,3.2078,4304.8,4304.1,0.601]
[1756828900352,3.2078,4304.8,4304.0,0.2435]
[1756828900353,3.2078,4304.8,4304.5,0.2435]
[1756828900546,3.2078,4304.8,4304.5,0.601]
[1756828900746,3.2078,4304.8,4303.5,0.2435]
[1756828900747,3.2078,4304.8,4303.8,0.848]
[1756828900947,3.2078,4304.8,4303.8,0.247]
[1756828901253,3.2078,4304.8,4304.0,0.2556]
[1756828901639,3.2078,4304.8,4304.1,0.5935]
[1756828902859,3.2078,4304.8,4303.6,0.8315]
[1756828903153,3.2078,4304.8,4303.7,0.5935]
[1756828903352,3.4548,4304.8,4303.7,0.5935]
[1756828903653,3.4548,4304.8,4303.7,0.8405]
[1756828903850,3.4548,4304.8,4303.8,0.5935]
[1756828904250,3.2078,4304.1,4303.4,3.2078]
[1756828904441,3.2078,4304.1,4303.2,0.5935]
[1756828904442,3.2078,4304.1,4303.3,0.5935]
[1756828904645,3.2078,4304.1,4303.4,3.2078]
[1756828904854,3.2078,4304.1,4303.5,0.5026]
[1756828905053,3.2078,4304.1,4303.5,0.8491]
[1756828906950,3.2078,4304.1,4303.0,0.2435]
[1756828907151,3.2078,4303.1,4302.3,3.2078]
[1756828907459,3.2078,4303.1,4302.0,0.2556]
[1756828907460,3.2078,4302.6,4302.4,0.5935]
[1756828907652,3.2078,4302.6,4301.9,1.6016]
[1756828907952,3.2078,4302.0,4301.9,1.0081]
[1756828908547,3.2078,4302.0,4301.9,1.6016]
[1756828908750,3.2078,4302.8,4302.0,0.2556]
[1756828908955,3.2078,4302.8,4302.1,0.5935]
[1756828909151,0.247,4302.7,4302.1,0.5935]
[1756828909356,0.247,4302.7,4301.8,3.2078]
[1756828909550,3.2078,4302.8,4302.0,0.2556]
[1756828909955,3.2078,4302.8,4302.1,0.5935]
[1756828910458,3.2078,4302.3,4302.1,0.5935]
[1756828910654,3.2078,4302.3,4301.5,0.2556]
[1756828910850,3.2078,4302.3,4301.6,0.5935]
[1756828911854,3.2078,4302.3,4301.1,0.5935]
[1756828912054,3.2078,4302.3,4301.6,1.5638]
[1756828912357,3.2078,4301.7,4301.6,1.5638]
[1756828912557,4.09854321,4301.7,4301.6,1.5638]
[1756828912860,8.09854321,4301.7,4301.6,1.5638]
[1756828913471,8.33101321,4301.7,4301.6,1.5638]
[1756828913759,8.09854321,4301.7,4301.6,1.5638]
[1756828914561,3.85154321,4301.7,4301.6,1.5638]
[1756828914760,4.09854321,4301.7,4301.6,1.5638]
[1756828914954,3.85154321,4301.7,4301.6,1.5638]
[1756828915154,3.2078,4301.7,4301.6,1.5638]
[1756828915356,3.2078,4301.7,4301.6,2.1573]
[1756828915560,3.2078,4301.7,4301.6,1.5638]
[1756828915962,7.8505484,4301.7,4301.6,1.5638]
[1756828916155,7.2078,4301.7,4301.6,1.5638]
[1756828916355,7.85035123,4301.7,4301.6,1.5638]
[1756828917462,3.85035123,4301.7,4301.6,1.5638]
[1756828917652,4.09735123,4301.7,4301.6,2.1573]
[1756828917957,3.4548,4301.7,4301.6,2.1573]
[1756828918360,3.4548,4301.7,4301.6,1.5638]
[1756828918861,3.4548,4301.7,4301.6,2.1573]
[1756828920261,8.3488,4301.7,4301.6,1.5638]
[1756828920458,8.99072801,4301.7,4300.7,0.50211843]
[1756828920659,3.2078,4300.8,4300.7,0.50211843]
[1756828920862,3.4548,4300.8,4300.7,0.50211843]
[1756828921166,3.4548,4300.8,4300.1,0.5935]
[1756828921367,3.2078,4300.7,4300.1,0.5935]
[1756828921566,0.247,4300.6,4299.7,3.2078]
[1756828922071,0.247,4300.6,4300.1,0.5935]
[1756828922561,3.2078,4300.7,4300.6,0.5935]
[1756828922761,3.4548,4301.4,4300.6,0.5935]
[1756828923469,3.2078,4300.9,4300.6,0.5935]
[1756828923765,3.4548,4300.9,4300.1,0.5935]
[1756828924458,3.2078,4300.9,4300.5,0.2556]
[1756828924660,0.247,4301.1,4301.0,0.2556]
[1756828924859,0.247,4301.2,4301.1,0.5935]
[1756828925367,0.00348558,4302.1,4301.1,4.5935]
[1756828925368,3.2078,4301.9,4301.1,4.5935]
[1756828925565,3.2078,4301.9,4301.5,0.2556]
[1756828926068,3.2078,4301.9,4301.6,0.5935]
[1756828926664,0.25048558,4302.1,4301.6,0.5935]
[1756828926665,3.2078,4302.5,4302.0,0.8491]
[1756828926862,3.2078,4302.5,4302.1,0.5935]
[1756828927468,0.247,4302.8,4302.5,0.2556]
[1756828927668,0.247,4302.8,4302.6,0.5935]
[1756828928058,3.2078,4303.6,4302.7,0.5935]
[1756828928260,3.2078,4303.6,4302.5,0.2556]
[1756828928261,3.2078,4303.6,4303.5,0.8491]
[1756828929871,3.4538,4303.6,4303.0,0.8491]
[1756828930172,3.4538,4303.6,4302.5,0.2556]
[1756828930173,3.2078,4303.1,4302.5,0.2556]
[1756828930376,3.4538,4303.1,4302.5,0.2556]
[1756828931867,0.246,4303.0,4302.6,0.5965]
[1756828932270,0.246,4303.0,4302.5,0.2556]
[1756828932469,0.246,4303.0,4302.6,0.5965]
[1756828932668,3.2078,4303.1,4303.0,0.2599]
[1756828932868,3.4538,4303.1,4303.0,0.8564]
[1756828933066,3.4538,4303.1,4302.5,3.4634]
[1756828933362,3.4538,4303.1,4302.5,0.8521]
[1756828934868,3.4538,4303.1,4302.5,0.2556]
[1756828935176,3.2078,4303.1,4303.0,0.8564]
[1756828935368,3.4538,4303.1,4303.0,0.5965]
[1756828935574,3.4538,4303.1,4302.5,4.0599]
[1756828936277,3.4538,4303.1,4302.5,0.8521]
[1756828936577,3.2078,4303.1,4302.5,0.8521]
[1756828936772,0.246,4303.0,4302.5,0.8521]
[1756828936974,0.246,4303.0,4302.6,0.5965]
[1756828937182,1.24804653,4304.3,4303.1,0.5965]
[1756828937183,3.2078,4303.7,4303.1,0.5965]
[1756828937375,3.2078,4303.7,4303.6,0.5965]
[1756828938268,3.4538,4303.7,4303.1,0.5965]
[1756828938474,0.246,4303.6,4303.1,0.5965]
[1756828938680,0.246,4303.6,4303.0,0.2599]
[1756828938681,3.2078,4303.7,4303.6,0.5965]
[1756828940177,3.4538,4303.7,4303.6,0.5965]
[1756828941182,3.2078,4303.7,4303.6,0.5965]
[1756828942582,3.2078,4304.2,4303.6,0.5965]
[1756828942787,3.2078,4304.2,4303.5,0.2599]
[1756828942788,0.246,4304.6,4304.1,0.5965]
[1756828943381,0.246,4304.6,4304.0,0.2599]
[1756828944385,3.2078,4304.7,4304.6,0.5965]
[1756828944585,1.6536441,4306.4,4304.5,0.2599]
[1756828944586,3.2078,4305.7,4305.1,0.5965]
[1756828944792,3.2078,4305.7,4305.6,0.5965]
[1756828946190,0.246,4306.2,4306.1,0.5965]
[1756828946395,3.4538,4306.3,4306.0,0.2599]
[1756828946891,3.2078,4306.3,4306.1,0.5965]
[1756828947191,3.2078,4306.3,4306.0,0.2599]
[1756828947389,3.2078,4306.3,4306.1,0.5965]
[1756828947893,0.246,4306.2,4305.6,0.5965]
[1756828948089,3.2078,4305.8,4305.6,0.5965]
[1756828948289,3.4538,4305.8,4305.5,0.2599]
[1756828948490,3.4538,4305.8,4305.6,0.5965]
[1756828948794,3.4538,4305.8,4305.0,4.0642]
[1756828949194,3.2078,4305.3,4305.0,0.8564]
[1756828949494,3.4538,4305.3,4304.5,0.8564]
[1756828949795,3.2078,4304.8,4304.5,0.2599]
[1756828949987,0.246,4304.7,4304.6,0.5965]
[1756828950594,0.246,4304.7,4303.9,0.5965]
[1756828950998,0.246,4304.7,4304.1,0.5965]
[1756828951396,3.2078,4304.3,4304.1,0.5965]
[1756828951900,3.4538,4304.8,4304.1,0.5965]
[1756828952091,0.246,4304.9,4304.6,0.5965]
[1756828952291,3.2078,4305.3,4304.6,0.5965]
[1756828952487,0.246,4305.2,4304.6,0.5965]
[1756828952792,3.2078,4304.7,4304.6,0.5965]
[1756828953498,0.246,4304.8,4304.6,0.5965]
[1756828953691,0.246,4304.8,4304.5,0.2599]
[1756828953891,0.246,4304.8,4304.1,0.5965]
[1756828954091,3.4538,4304.8,4304.1,0.5965]
[1756828955299,0.246,4304.7,4304.1,0.5965]
[1756828955591,0.246,4304.6,4304.1,0.5965]
[1756828955995,0.246,4304.6,4303.9,3.2078]
[1756828956696,0.246,4304.6,4303.5,0.2599]
[1756828957095,0.246,4304.6,4304.0,0.5965]
[1756828957297,3.2078,4304.3,4304.0,0.5965]
[1756828957495,0.246,4304.2,4303.5,0.2599]
[1756828957799,0.246,4304.2,4303.6,0.5965]
[1756828958696,3.2078,4303.8,4303.6,0.5965]
[1756828958897,0.88883797,4303.7,4303.1,0.5965]
[1756828959099,0.64283797,4303.6,4303.0,0.2599]
[1756828959296,3.2078,4303.2,4302.6,0.5965]
[1756828959493,3.2078,4302.7,4302.6,0.5965]
[1756828959700,3.4538,4302.7,4302.1,0.5965]
[1756828960001,0.246,4302.6,4302.1,0.5965]
[1756828960199,0.246,4302.6,4301.5,3.7027]
[1756828960497,0.246,4302.6,4302.0,0.8564]
[1756828960696,0.246,4302.6,4302.1,0.5965]
[1756828961092,0.246,4302.6,4302.1,0.594]
[1756828961300,3.2078,4302.7,4302.1,0.594]
[1756828961598,0.246,4302.6,4302.1,0.594]
[1756828961996,0.246,4302.6,4302.0,0.2599]
[1756828962496,0.246,4302.6,4302.1,0.594]
[1756828962697,3.2078,4302.7,4302.1,0.594]
[1756828962997,0.246,4302.6,4302.5,0.8482]
[1756828963192,1.24804653,4303.7,4302.5,0.2542]
[1756828963193,3.2078,4302.8,4302.5,0.2542]
[1756828963496,3.2078,4303.6,4303.5,0.2542]
[1756828963698,4.09636541,4303.6,4303.5,0.8482]
[1756828964592,4.09636541,4303.6,4303.0,0.2542]
[1756828964794,0.6426668,4303.5,4303.0,0.8482]
[1756828964999,3.4538,4303.6,4303.1,0.594]
[1756828965195,0.64264348,4303.5,4303.1,0.594]
[1756828965499,3.2078,4303.6,4303.5,0.8482]
[1756828965699,3.850481,4303.6,4302.9,0.594]
[1756828965894,3.2078,4303.1,4302.6,0.594]
[1756828966088,3.2078,4303.1,4302.1,3.2078]
[1756828966089,3.4538,4303.1,4302.1,3.2078]
[1756828966295,3.2078,4302.3,4302.0,0.2599]
[1756828966494,0.246,4302.2,4302.1,0.594]
[1756828966891,0.246,4302.2,4301.6,3.2078]
[1756828967700,3.2078,4301.7,4300.9,3.8018]
[1756828968002,0.246,4301.6,4301.1,0.594]
[1756828968298,3.2078,4301.7,4301.5,0.2542]
[1756828968499,0.246,4301.8,4301.6,0.594]
[1756828968799,0.246,4301.9,4301.5,0.2542]
[1756828969006,0.246,4301.9,4301.6,0.594]
[1756828969206,0.246,4301.9,4301.5,0.2542]
[1756828969799,0.246,4301.9,4301.6,0.594]
[1756828970006,3.2078,4301.8,4301.5,0.2542]
[1756828970392,3.2078,4301.8,4301.6,0.594]
[1756828971104,3.2078,4301.8,4301.1,3.2078]
[1756828971300,3.2078,4301.2,4300.7,1.5814]
[1756828971608,0.246,4301.1,4300.7,1.5814]
[1756828972402,0.64084751,4301.0,4300.7,1.5814]
[1756828972602,0.246,4301.1,4300.7,1.5814]
[1756828972812,0.64085423,4301.0,4300.0,4.714]
[1756828973006,3.2078,4300.6,4300.0,4.714]
[1756828973207,0.246,4300.5,4300.0,4.714]
[1756828973401,0.246,4300.5,4300.1,0.594]
[1756828974801,0.246,4300.5,4300.0,4.4598]
[1756828975011,3.2078,4300.1,4300.0,1.252]
[1756828975309,3.4538,4300.1,4300.0,1.252]
[1756828975810,3.4538,4300.1,4299.7,0.594]
[1756828976006,3.4538,4300.1,4299.5,0.2542]
[1756828976512,3.4538,4300.1,4299.6,0.594]
[1756828976713,3.4538,4300.1,4299.5,0.2542]
[1756828977114,3.4538,4300.1,4299.6,0.594]
[1756828977611,3.4538,4300.1,4299.5,0.2542]
[1756828978311,3.4538,4300.1,4299.5,0.8482]
[1756828979018,3.4538,4300.1,4299.6,0.594]
[1756828979219,3.4538,4300.1,4299.5,0.2542]
[1756828979513,3.4538,4300.1,4299.5,0.594]
[1756828979722,3.2078,4299.6,4299.3,1.0819]
[1756828979910,0.246,4299.5,4299.3,1.0819]
[1756828980311,0.246,4299.5,4299.0,0.2542]
[1756828980609,0.246,4299.5,4299.1,0.594]
[1756828980917,0.246,4299.5,4299.0,0.2542]
[1756828981309,0.246,4299.5,4299.1,0.594]
[1756828981710,0.246,4299.5,4299.0,0.2542]
[1756828981911,0.246,4299.5,4299.1,0.594]
[1756828982412,0.246,4299.5,4299.0,0.2542]
[1756828983416,0.246,4299.5,4299.1,0.594]
[1756828983612,0.246,4299.5,4299.0,0.2542]
[1756828983914,3.2078,4299.6,4299.5,0.8482]
[1756828984120,1.24804653,4301.5,4300.0,0.8482]
[1756828984417,3.2078,4301.5,4300.7,0.594]
[1756828984622,3.7933,4301.5,4300.7,0.594]
[1756828984820,3.2078,4301.0,4300.7,0.594]
[1756828985117,3.2078,4301.7,4300.6,0.594]
[1756828985313,0.88644938,4301.6,4300.6,0.594]
[1756828985521,0.246,4301.6,4300.6,0.594]
[1756828985919,0.64055852,4301.5,4300.6,0.594]
[1756828986122,0.246,4301.6,4300.6,0.594]
[1756828986316,0.64093879,4301.5,4300.6,0.594]
[1756828986514,0.64107904,4301.4,4300.6,0.594]
[1756828986710,3.2078,4301.1,4300.6,0.594]
[1756828986914,0.5855,4300.9,4300.6,0.594]
[1756828987109,0.5855,4300.9,4300.1,0.594]
[1756828987110,0.64114129,4300.8,4300.1,0.594]
[1756828987310,3.84894129,4300.8,4300.1,0.594]
[1756828987516,2.0670551,4302.3,4300.0,0.2542]
[1756828987517,0.64114129,4300.7,4300.6,0.594]